fUSD/lending_fUSD_20241006
["ID","MTS","AMOUNT","RATE_DAILY","PERIOD"]
[339968405,1728243580382,-157.100613,0.00041898,120]
[339968406,1728243580406,-150.0,0.00041906,30]
[339968407,1728243580432,-150.0,0.00041906,30]
[339968408,1728243580459,-151.10061,0.00041998,120]
[339968409,1728243580485,-50000.0,0.00042,32]
[339968410,1728243580511,-50000.0,0.00042,42]
[339968411,1728243580536,-1000.0,0.00042,120]
[339968412,1728243580561,-792.90206525,0.00042,120]
[339968413,1728243580586,-380.0,0.00042,120]
[339968414,1728243580613,-852.05612696,0.00042,50]
[339968415,1728243580639,-281311.59959965,0.00042,120]
[339968416,1728243592531,-500.0,0.00038356,30]
[339968417,1728243592555,-500.0,0.00038767,30]
[339968418,1728243592579,-500.0,0.00039178,30]
[339968419,1728243592602,-500.0,0.00039589,30]
[339968420,1728243592629,-500.0,0.0004,30]
[339968421,1728243592656,-618.59,0.0004041,30]
[339968422,1728243592788,-500.0,0.0004041,30]
[339968423,1728243592817,-618.59,0.00040821,30]
[339968424,1728243592843,-500.0,0.00040821,30]
[339968425,1728243592869,-618.59,0.00041232,120]
[339968426,1728243592893,-500.0,0.00041232,120]
[339968427,1728243592916,-150.0,0.00041476,30]
[339968428,1728243592938,-618.59,0.00041643,120]
[339968429,1728243592961,-500.0,0.00041643,120]
[339968430,1728243592989,-218688.40040035,0.00042,120]
[339968431,1728243593011,-466287.2403731,0.00042,30]
[339968432,1728243593033,-229.93011912,0.00042,120]
[339968433,1728243593057,-150.0,0.00042022,30]
[339968434,1728243593081,-1239.05,0.00042054,120]
[339968435,1728243593105,-500.0,0.00042054,120]
[339968436,1728243593130,-624.13,0.00042054,120]
[339968437,1728243593158,-500.0,0.00042054,120]
[339968438,1728243593183,-500.0,0.00042054,120]
[339968439,1728243593208,-500.0,0.00042054,120]
[339968440,1728243593233,-500.0,0.00042054,120]
[339968441,1728243593259,-500.0,0.00042054,120]
[339968442,1728243593284,-500.0,0.00042054,120]
[339968443,1728243593310,-873.22,0.00042054,120]
[339968444,1728243593335,-1730.41,0.00042054,30]
[339968445,1728243593360,-1673.99,0.00042054,120]
[339968446,1728243593385,-500.0,0.00042054,120]
[339968447,1728243593413,-500.0,0.00042054,120]
[339968448,1728243593440,-500.0,0.00042054,120]
[339968449,1728243593464,-500.0,0.00042054,120]
[339968450,1728243593489,-500.0,0.00042054,120]
[339968451,1728243593513,-500.0,0.00042054,120]
[339968452,1728243593537,-500.0,0.00042054,120]
[339968453,1728243593562,-500.0,0.00042054,120]
[339968454,1728243593585,-500.0,0.00042054,120]
[339968455,1728243593610,-641.14,0.00042054,120]
[339968456,1728243593635,-616.79,0.00042054,120]
[339968457,1728243593661,-635.48,0.00042054,120]
[339968458,1728243593685,-500.0,0.00042054,120]
[339968459,1728243593708,-500.0,0.00042054,120]
[339968460,1728243593733,-500.0,0.00042054,120]
[339968461,1728243593757,-516.6,0.00042054,120]
[339968462,1728243593781,-500.0,0.00042054,120]
[339968463,1728243593805,-727.79,0.00042054,120]
[339968464,1728243593829,-695.05,0.00042054,120]
[339968465,1728243593853,-500.0,0.00042054,120]
[339968466,1728243593877,-500.0,0.00042054,120]
[339968467,1728243593901,-762.91,0.00042054,120]
[339968468,1728243593925,-500.0,0.00042054,120]
[339968469,1728243593951,-1416.3,0.00042054,120]
[339968470,1728243593976,-500.0,0.00042054,120]
[339968471,1728243594000,-445.6773307,0.00042054,120]
[339968472,1728243594023,-228.4574965,0.00042054,120]
[339968473,1728243594047,-313.64,0.00042054,120]
[339968474,1728243594071,-1216.37,0.00042054,120]
[339968475,1728243594094,-554.61,0.00042054,120]
[339968476,1728243594118,-500.0,0.00042054,120]
[339968477,1728243594142,-618.59,0.00042054,120]
[339968478,1728243594166,-500.0,0.00042054,120]
[339968479,1728243594190,-157.100613,0.00042098,120]
[339968480,1728243594214,-673.06263451,0.000421,30]
[339968481,1728243594238,-150.0,0.00042105,30]
[339968482,1728243594265,-150.0,0.00042138,30]
[339968483,1728243594289,-150.0,0.00042138,30]
[339968484,1728243594315,-151.10061,0.00042198,120]
[339968485,1728243594339,-150.0,0.00042254,30]
[339968486,1728243594364,-157.100613,0.00042298,120]
[339968487,1728243594388,-150.0,0.00042369,30]
[339968488,1728243594413,-150.0,0.00042369,30]
[339968489,1728243594437,-150.0,0.00042383,120]
[339968490,1728243594461,-151.10061,0.00042398,120]
[339968491,1728243594484,-150.0,0.00042419,30]
[339968492,1728243594508,-150.0,0.00042435,120]
[339968493,1728243594532,-1239.05,0.00042465,120]
[339968494,1728243594556,-500.0,0.00042465,120]
[339968495,1728243594579,-624.13,0.00042465,120]
[339968496,1728243594602,-500.0,0.00042465,120]
[339968497,1728243594626,-623.7055899,0.00042465,120]
[339968498,1728243594651,-500.0,0.00042465,120]
[339968499,1728243594674,-500.0,0.00042465,120]
[339968500,1728243594697,-500.0,0.00042465,120]
[339968501,1728243594722,-500.0,0.00042465,120]
[339968502,1728243594746,-873.22,0.00042465,120]
[339968503,1728243594769,-1730.41,0.00042465,30]
[339968504,1728243594792,-1673.99,0.00042465,120]
[339968505,1728243594816,-500.0,0.00042465,120]
[339968506,1728243594839,-500.0,0.00042465,120]
[339968507,1728243594863,-500.0,0.00042465,120]
[339968508,1728243594887,-504.72837295,0.00042465,120]
[339968509,1728243594912,-210.45018672,0.00042465,120]
[339968510,1728243594936,-500.0,0.00042465,120]
[339968511,1728243594961,-500.0,0.00042465,120]
[339968512,1728243594984,-500.0,0.00042465,120]
[339968513,1728243595009,-500.0,0.00042465,120]
[339968514,1728243595033,-641.14,0.00042465,120]
[339968515,1728243595058,-616.79,0.00042465,120]
[339968516,1728243595082,-635.48,0.00042465,120]
[339968517,1728243595105,-500.0,0.00042465,120]
[339968518,1728243595131,-500.0,0.00042465,120]
[339968519,1728243595157,-500.0,0.00042465,120]
[339968520,1728243595184,-516.6,0.00042465,120]
[339968521,1728243595209,-500.0,0.00042465,120]
[339968522,1728243595234,-727.79,0.00042465,120]
[339968523,1728243595362,-695.05,0.00042465,120]
[339968524,1728243595388,-500.0,0.00042465,120]
[339968525,1728243595414,-500.0,0.00042465,120]
[339968526,1728243595438,-762.91,0.00042465,120]
[339968527,1728243595462,-500.0,0.00042465,120]
[339968528,1728243595486,-1416.3,0.00042465,120]
[339968529,1728243595510,-500.0,0.00042465,120]
[339968530,1728243595534,-313.64,0.00042465,120]
[339968531,1728243595557,-1216.37,0.00042465,120]
[339968532,1728243595582,-554.61,0.00042465,120]
[339968533,1728243595606,-487.2455,0.00042465,120]
[339968534,1728243595631,-618.59,0.00042465,120]
[339968535,1728243595655,-500.0,0.00042465,120]
[339968536,1728243595680,-150.0,0.00042485,30]
[339968537,1728243595704,-157.100613,0.00042498,120]
[339968538,1728243595727,-231.30430725,0.000425,60]
[339968539,1728243595751,-8675.33040701,0.00042553,120]
[339968540,1728243595775,-151.10061,0.00042598,120]
[339968541,1728243595801,-150.0,0.00042601,30]
[339968542,1728243595826,-150.0,0.00042601,30]
[339968543,1728243595849,-157.100613,0.00042698,120]
[339968544,1728243595874,-150.0,0.00042717,30]
[339968545,1728243595899,-150.0,0.00042733,30]
[339968546,1728243595922,-208.13,0.0004277,30]
[339968547,1728243595946,-151.10061,0.00042798,120]
[339968548,1728243595972,-20000.0,0.0004283,120]
[339968549,1728243595996,-4794.349999,0.0004283,120]
[339968550,1728243596021,-150.0,0.00042832,30]
[339968551,1728243596045,-150.0,0.00042832,30]
[339968552,1728243596069,-1239.05,0.00042876,120]
[339968553,1728243596093,-500.0,0.00042876,120]
[339968554,1728243596116,-624.13,0.00042876,120]
[339968555,1728243596142,-500.0,0.00042876,120]
[339968556,1728243596166,-500.0,0.00042876,120]
[339968557,1728243596193,-500.0,0.00042876,120]
[339968558,1728243596217,-546.54939287,0.00042876,120]
[339968559,1728243596240,-500.0,0.00042876,120]
[339968560,1728243596266,-873.22,0.00042876,120]
[339968561,1728243596290,-1730.41,0.00042876,30]
[339968562,1728243596314,-1673.99,0.00042876,120]
[339968563,1728243596338,-500.0,0.00042876,120]
[339968564,1728243596363,-500.0,0.00042876,120]
[339968565,1728243596388,-568.05144993,0.00042876,120]
[339968566,1728243596413,-530.0291982,0.00042876,120]
[339968567,1728243596436,-500.0,0.00042876,120]
[339968568,1728243596461,-500.0,0.00042876,120]
[339968569,1728243596485,-500.0,0.00042876,120]
[339968570,1728243596509,-641.14,0.00042876,120]
[339968571,1728243596533,-616.79,0.00042876,120]
[339968572,1728243596557,-635.48,0.00042876,120]
[339968573,1728243596580,-500.0,0.00042876,120]
[339968574,1728243596605,-500.0,0.00042876,120]
[339968575,1728243596629,-500.0,0.00042876,120]
[339968576,1728243596653,-516.6,0.00042876,120]
[339968577,1728243596676,-500.0,0.00042876,120]
[339968578,1728243596700,-727.79,0.00042876,120]
[339968579,1728243596723,-695.05,0.00042876,120]
[339968580,1728243596746,-500.0,0.00042876,120]
[339968581,1728243596774,-500.0,0.00042876,120]
[339968582,1728243596809,-762.91,0.00042876,120]
[339968583,1728243596832,-500.0,0.00042876,120]
[339968584,1728243596856,-1416.3,0.00042876,120]
[339968585,1728243596880,-500.0,0.00042876,120]
[339968586,1728243596905,-313.64,0.00042876,120]
[339968587,1728243596929,-1216.37,0.00042876,120]
[339968588,1728243596953,-554.61,0.00042876,120]
[339968589,1728243596977,-618.59,0.00042876,120]
[339968590,1728243597000,-500.0,0.00042876,120]
[339968591,1728243597025,-150.0,0.0004289,30]
[339968592,1728243597049,-157.100613,0.00042898,120]
[339968593,1728243597074,-208.25563529,0.00042898,120]
[339968594,1728243597097,-3362.35811821,0.000429,120]
[339968595,1728243597122,-150.0,0.00042948,30]
[339968596,1728243597148,-151.100606,0.00042998,120]
[339968597,1728243597176,-50000.0,0.00043,33]
[339968598,1728243597215,-50000.0,0.00043,43]
[339968599,1728243597240,-6552.00886,0.00043,30]
[339968600,1728243597267,-1000.0,0.00043,120]
[339968601,1728243597291,-1003.9,0.00043,120]
[339968602,1728243597316,-500.0,0.00043,120]
[339968603,1728243597342,-742.93,0.00043,120]
[339968604,1728243597367,-1003.77,0.00043,120]
[339968605,1728243597393,-521.35727324,0.00043,120]
[339968606,1728243597420,-500000.0,0.00043,120]
[339968607,1728243597446,-592.11040887,0.00043,30]
[339968608,1728243597470,-321695.9115198,0.00043,120]
[339968609,1728243597494,-150.0,0.00043047,30]
[339968610,1728243597518,-150.0,0.00043064,30]
[339968611,1728243597541,-150.0,0.00043064,30]
[339968612,1728243597566,-151.100606,0.00043098,120]
[339968613,1728243597592,-150.0,0.0004318,30]
[339968614,1728243597617,-151.100606,0.00043198,120]
[339968615,1728243597641,-259.9248197,0.000432,120]
[339968616,1728243597664,-291.48818535,0.000432,120]
[339968617,1728243597689,-283.04899031,0.000432,33]
[339968618,1728243597712,-10000.00000099,0.00043265,30]
[339968619,1728243597735,-1239.05,0.00043287,120]
[339968620,1728243597759,-500.0,0.00043287,120]
[339968621,1728243597783,-624.13,0.00043287,120]
[339968622,1728243597808,-500.0,0.00043287,120]
[339968623,1728243597932,-500.0,0.00043287,120]
[339968624,1728243597958,-500.0,0.00043287,120]
[339968625,1728243597983,-500.0,0.00043287,120]
[339968626,1728243598008,-873.22,0.00043287,120]
[339968627,1728243598033,-1730.41,0.00043287,30]
[339968628,1728243598058,-1673.99,0.00043287,120]
[339968629,1728243598082,-500.0,0.00043287,120]
[339968630,1728243598106,-500.0,0.00043287,120]
[339968631,1728243598131,-435.08269871,0.00043287,120]
[339968632,1728243598157,-500.0,0.00043287,120]
[339968633,1728243598181,-500.0,0.00043287,120]
[339968634,1728243598206,-641.14,0.00043287,120]
[339968635,1728243598229,-616.79,0.00043287,120]
[339968636,1728243598254,-635.48,0.00043287,120]
[339968637,1728243598280,-500.0,0.00043287,120]
[339968638,1728243598303,-500.0,0.00043287,120]
[339968639,1728243598327,-189.68084491,0.00043287,120]
[339968640,1728243598354,-516.6,0.00043287,120]
[339968641,1728243598377,-500.0,0.00043287,120]
[339968642,1728243598402,-727.79,0.00043287,120]
[339968643,1728243598426,-695.05,0.00043287,120]
[339968644,1728243598450,-417.19743305,0.00043287,120]
[339968645,1728243598475,-500.0,0.00043287,120]
[339968646,1728243598498,-762.91,0.00043287,120]
[339968647,1728243598520,-500.0,0.00043287,120]
[339968648,1728243598546,-1416.3,0.00043287,120]
[339968649,1728243598571,-500.0,0.00043287,120]
[339968650,1728243598595,-313.64,0.00043287,120]
[339968651,1728243598619,-1216.37,0.00043287,120]
[339968652,1728243598643,-554.61,0.00043287,120]
[339968653,1728243598675,-618.59,0.00043287,120]
[339968654,1728243598698,-500.0,0.00043287,120]
[339968655,1728243598722,-150.0,0.00043295,30]
[339968656,1728243598746,-150.0,0.00043295,30]
[339968657,1728243598770,-151.100606,0.00043298,120]
[339968658,1728243598794,-150.0,0.000433,120]
[339968659,1728243598818,-674.32659866,0.000433,120]
[339968660,1728243598842,-150.0,0.00043362,30]
[339968661,1728243598866,-151.100606,0.00043398,120]
[339968662,1728243598890,-150.0,0.00043411,30]
[339968663,1728243598915,-215.18,0.00043412,90]
[339968664,1728243598939,-150.0,0.00043449,120]
[339968665,1728243598964,-151.100606,0.00043498,120]
[339968666,1728243598987,-1002.0,0.000435,30]
[339968667,1728243599011,-150.0,0.00043527,30]
[339968668,1728243599035,-150.0,0.00043527,30]
[339968669,1728243599058,-11898.59780179,0.0004356,120]
[339968670,1728243599082,-195.76590869,0.00043567,120]
[339968671,1728243599106,-1400.0,0.000436,30]
[339968672,1728243599130,-150.0,0.00043611,120]
[339968673,1728243599155,-150.0,0.00043643,30]
[339968674,1728243599180,-150.0,0.00043676,30]
[339968675,1728243599203,-1000.0,0.0004369,120]
[339968676,1728243599227,-1239.05,0.00043698,120]
[339968677,1728243599252,-500.0,0.00043698,120]
[339968678,1728243599280,-624.13,0.00043698,120]
[339968679,1728243599304,-500.0,0.00043698,120]
[339968680,1728243599329,-500.0,0.00043698,120]
[339968681,1728243599356,-499.24950001,0.00043698,120]
[339968682,1728243599380,-500.0,0.00043698,120]
[339968683,1728243599405,-873.22,0.00043698,120]
[339968684,1728243599429,-1730.41,0.00043698,30]
[339968685,1728243599453,-1673.99,0.00043698,120]
[339968686,1728243599478,-500.0,0.00043698,120]
[339968687,1728243599501,-500.0,0.00043698,120]
[339968688,1728243599524,-500.0,0.00043698,120]
[339968689,1728243599548,-500.0,0.00043698,120]
[339968690,1728243599571,-641.14,0.00043698,120]
[339968691,1728243599595,-616.79,0.00043698,120]
[339968692,1728243599618,-635.48,0.00043698,120]
[339968693,1728243599641,-500.0,0.00043698,120]
[339968694,1728243599666,-500.0,0.00043698,120]
[339968695,1728243599688,-516.6,0.00043698,120]
[339968696,1728243599711,-500.0,0.00043698,120]
[339968697,1728243599734,-727.79,0.00043698,120]
[339968698,1728243599757,-695.05,0.00043698,120]
[339968699,1728243599779,-500.0,0.00043698,120]
[339968700,1728243599803,-762.91,0.00043698,120]
[339968701,1728243599826,-500.0,0.00043698,120]
[339968702,1728243599850,-1416.3,0.00043698,120]
[339968703,1728243599874,-500.0,0.00043698,120]
[339968704,1728243599898,-313.64,0.00043698,120]
[339968705,1728243599922,-1216.37,0.00043698,120]
[339968706,1728243599945,-554.61,0.00043698,120]
[339968707,1728243599968,-618.59,0.00043698,120]
[339968708,1728243599991,-500.0,0.00043698,120]
[339968709,1728243600016,-150.0,0.00043758,30]
[339968710,1728243600041,-150.0,0.00043758,30]
[339968711,1728243600065,-166.08,0.000438,120]
[339968712,1728243600091,-604.88,0.00043831,120]
[339968713,1728243600115,-500.0,0.00043835,120]
[339968714,1728243600139,-183.12311914,0.00043835,120]
[339968715,1728243600165,-500.0,0.00043835,60]
[339968716,1728243600189,-500.0,0.00043835,60]
[339968717,1728243600213,-500.0,0.00043835,60]
[339968718,1728243600239,-500.0,0.00043835,60]
[339968719,1728243600264,-500.0,0.00043835,60]
[339968720,1728243600390,-500.0,0.00043835,60]
[339968721,1728243600416,-500.0,0.00043835,60]
[339968722,1728243600441,-500.0,0.00043835,60]
[339968723,1728243600465,-500.0,0.00043835,60]
[339968724,1728243600489,-500.0,0.00043835,60]
[339968725,1728243600513,-500.0,0.00043835,60]
[339968726,1728243600537,-500.0,0.00043835,60]
[339968727,1728243600561,-500.0,0.00043835,60]
[339968728,1728243600585,-500.0,0.00043835,60]
[339968729,1728243600609,-1000.0,0.00043835,120]
[339968730,1728243600632,-1119.95229916,0.00043835,120]
[339968731,1728243600657,-150.0,0.00043874,30]
[339968732,1728243600682,-559730.28,0.0004388,30]
[339968733,1728243600705,-40035.0,0.0004389,120]
[339968734,1728243600729,-2066.11349811,0.000439,30]
[339968735,1728243600753,-150.0,0.000439,30]
[339968736,1728243600777,-4299.0,0.000439,31]
[339968737,1728243600801,-251.30346022,0.0004399,30]
[339968738,1728243600824,-206.46646051,0.0004399,30]
[339968739,1728243600848,-169.48800322,0.0004399,30]
[339968740,1728243600871,-286.06277535,0.0004399,30]
[339968741,1728243600894,-202.06981575,0.0004399,30]
[339968742,1728243600917,-1000.0,0.00043999,120]
[339968743,1728243600943,-50000.0,0.00044,34]
[339968744,1728243600968,-50000.0,0.00044,44]
[339968745,1728243600992,-5053.7349601,0.00044,60]
[339968746,1728243601016,-2000.0,0.00044,120]
[339968747,1728243601039,-391.7614631,0.00044,120]
[339968748,1728243601065,-1000000.0,0.00044,120]
[339968749,1728243601090,-1000.0,0.00044,120]
[339968750,1728243601116,-395000.0,0.00044,120]
[339968751,1728243601141,-900.0,0.00044,120]
[339968752,1728243601174,-500000.0,0.00044,120]
[339968753,1728243601198,-351.152223,0.00044,57]
[339968754,1728243601222,-1239.05,0.00044109,120]
[339968755,1728243601245,-500.0,0.00044109,120]
[339968756,1728243601273,-624.13,0.00044109,120]
[339968757,1728243601296,-500.0,0.00044109,120]
[339968758,1728243601319,-500.0,0.00044109,120]
[339968759,1728243601343,-500.0,0.00044109,120]
[339968760,1728243601367,-873.22,0.00044109,120]
[339968761,1728243601393,-1730.41,0.00044109,30]
[339968762,1728243601419,-1673.99,0.00044109,120]
[339968763,1728243601443,-596.11743693,0.00044109,120]
[339968764,1728243601466,-500.0,0.00044109,60]
[339968765,1728243601489,-500.0,0.00044109,120]
[339968766,1728243601512,-500.0,0.00044109,120]
[339968767,1728243601535,-500.0,0.00044109,120]
[339968768,1728243601559,-641.14,0.00044109,120]
[339968769,1728243601583,-616.79,0.00044109,120]
[339968770,1728243601608,-635.48,0.00044109,120]
[339968771,1728243601632,-395.57487138,0.00044109,120]
[339968772,1728243601661,-500.0,0.00044109,120]
[339968773,1728243601685,-516.6,0.00044109,120]
[339968774,1728243601709,-500.0,0.00044109,120]
[339968775,1728243601733,-727.79,0.00044109,120]
[339968776,1728243601758,-695.05,0.00044109,120]
[339968777,1728243601782,-245.09228961,0.00044109,120]
[339968778,1728243601805,-762.91,0.00044109,120]
[339968779,1728243601829,-500.0,0.00044109,120]
[339968780,1728243601852,-1416.3,0.00044109,120]
[339968781,1728243601877,-500.0,0.00044109,120]
[339968782,1728243601905,-313.64,0.00044109,120]
[339968783,1728243601928,-1216.37,0.00044109,120]
[339968784,1728243601952,-554.61,0.00044109,120]
[339968785,1728243601975,-618.59,0.00044109,120]
[339968786,1728243601999,-500.0,0.00044109,120]
[339968787,1728243602024,-150.0,0.00044275,120]
[339968788,1728243602048,-15231.03374006,0.0004437,90]
[339968789,1728243602072,-40000.0,0.0004449,120]
[339968790,1728243602096,-1000.0,0.00044499,120]
[339968791,1728243602120,-150.0,0.000445,90]
[339968792,1728243602149,-1239.05,0.0004452,120]
[339968793,1728243602173,-500.0,0.0004452,120]
[339968794,1728243602197,-624.13,0.0004452,120]
[339968795,1728243602221,-260.60531699,0.0004452,120]
[339968796,1728243602258,-500.0,0.0004452,120]
[339968797,1728243602285,-500.0,0.0004452,120]
[339968798,1728243602310,-873.22,0.0004452,120]
[339968799,1728243602336,-1730.41,0.0004452,30]
[339968800,1728243602360,-1673.99,0.0004452,120]
[339968801,1728243602385,-500.0,0.0004452,60]
[339968802,1728243602411,-259.58556073,0.0004452,120]
[339968803,1728243602435,-500.0,0.0004452,120]
[339968804,1728243602460,-500.0,0.0004452,120]
[339968805,1728243602485,-641.14,0.0004452,120]
[339968806,1728243602511,-616.79,0.0004452,120]
[339968807,1728243602535,-635.48,0.0004452,120]
[339968808,1728243602561,-500.0,0.0004452,120]
[339968809,1728243602586,-516.6,0.0004452,120]
[339968810,1728243602610,-500.0,0.0004452,120]
[339968811,1728243602636,-727.79,0.0004452,120]
[339968812,1728243602661,-695.05,0.0004452,120]
[339968813,1728243602808,-762.91,0.0004452,120]
[339968814,1728243602833,-500.0,0.0004452,120]
[339968815,1728243602858,-1416.3,0.0004452,120]
[339968816,1728243602882,-500.0,0.0004452,120]
[339968817,1728243602910,-313.64,0.0004452,120]
[339968818,1728243602935,-1216.37,0.0004452,120]
[339968819,1728243602962,-554.61,0.0004452,120]
[339968820,1728243602986,-618.59,0.0004452,120]
[339968821,1728243603010,-500.0,0.0004452,120]
[339968822,1728243603036,-1000.0,0.0004479,120]
[339968823,1728243603063,-7801.48365497,0.000448,120]
[339968824,1728243603091,-168.995235,0.000448,30]
[339968825,1728243603118,-1046.689925,0.000448,30]
[339968826,1728243603145,-4753.607571,0.000448,30]
[339968827,1728243603175,-433434.59982398,0.0004488,30]
[339968828,1728243611154,-366565.40017602,0.0004488,30]
[339968829,1728243611186,-4633434.59982398,0.0004488,120]
[339968830,1728243675921,541.0,0.00015,2]
[339968831,1728243676509,514.0,0.00015,2]
[339968832,1728243968339,160.76,0.00010959,2]
[339968833,1728244011706,179.92,0.00013699,2]
[339969396,1728244088012,200.0,0.00014925,2]
[339969397,1728244088044,150.0,0.000122,2]
[339969398,1728244203219,2881.44106964,0.000149,7]
[339969399,1728244214033,200.37301296,0.00014825,2]
[339969412,1728244232229,-151.75,0.00024109,2]
[339969414,1728244232239,-163.0,0.00025,2]
[339969415,1728244232249,-151.75,0.00027122,2]
[339969416,1728244232258,-301.7,0.00028624,2]
[339969417,1728244232267,-164.0,0.0003,4]
[339969418,1728244232276,-1593.84252594,0.0003,2]
[339969419,1728244232291,-332.53295451,0.0003,2]
[339969420,1728244232301,-255.0,0.000301,2]
[339969421,1728244232311,-41.34529549,0.00030136,2]
[339969422,1728244232398,-110.40470451,0.00030136,2]
[339969423,1728244232408,-250.0,0.00030159,2]
[339969424,1728244232417,-299.99,0.00030159,12]
[339969425,1728244232427,-389.18,0.00030234,2]
[339969426,1728244232436,-799.99,0.00030238,120]
[339969427,1728244232446,-62.80882886,0.00030259,2]
[339969428,1728244232457,-87.59117114,0.00030259,2]
[339969429,1728244232467,-158.61,0.00030264,2]
[339969430,1728244232476,-3223.03,0.00030313,2]
[339969431,1728244232486,-200.0,0.0003033,2]
[339969432,1728244232495,-10932.03,0.0003034,2]
[339969433,1728244232505,-150.99,0.0003034,2]
[339969434,1728244232514,-499.99,0.0003034,2]
[339969436,1728244232523,-247.87,0.0003034,2]
[339969438,1728244232533,-537.73,0.0003034,2]
[339969440,1728244232542,-150.0,0.00030357,2]
[339969441,1728244232551,-855.0,0.00030369,2]
[339969442,1728244232560,-250.0,0.0003037,2]
[339969443,1728244232570,-1205.99,0.0003037,2]
[339969444,1728244232579,-323.69,0.0003037,2]
[339969445,1728244232588,-776.85,0.0003037,2]
[339969446,1728244232598,-160.8,0.00030385,120]
[339969447,1728244232612,-2751.0,0.00030416,2]
[339969448,1728244232620,-200.0,0.00030433,2]
[339969449,1728244232629,-250.0,0.00030443,2]
[339969450,1728244232638,-604.89,0.00030473,30]
[339969451,1728244232648,-737.42,0.0003048,2]
[339969452,1728244232657,-200.0,0.00030484,2]
[339969453,1728244232667,-161.79,0.00030517,120]
[339969454,1728244232675,-150.0,0.00030592,2]
[339969455,1728244232686,-1134.009,0.00030592,2]
[339969456,1728244232696,-186.44,0.00030609,2]
[339969457,1728244232706,-1000.0,0.00030665,2]
[339969458,1728244232715,-301.7,0.00030888,2]
[339969459,1728244232724,-1800.0,0.00031,32]
[339969460,1728244232733,-500.0,0.0003102,2]
[339969461,1728244232742,-511.55,0.0003102,2]
[339969462,1728244232751,-500.0,0.00031023,2]
[339969463,1728244232760,-370.42,0.00031023,2]
[339969464,1728244232769,-309.39447324,0.00031023,2]
[339969465,1728244232783,-190.60552676,0.00031023,2]
[339969466,1728244232793,-500.0,0.00031023,2]
[339969467,1728244232802,-500.0,0.00031023,2]
[339969468,1728244232811,-500.0,0.00031023,2]
[339969469,1728244232821,-500.0,0.00031023,2]
[339969470,1728244232830,-500.0,0.00031023,2]
[339969471,1728244232839,-500.0,0.00031023,2]
[339969472,1728244232848,-500.0,0.00031023,2]
[339969473,1728244232857,-500.0,0.00031023,2]
[339969474,1728244232866,-500.0,0.00031023,2]
[339969475,1728244232878,-500.0,0.00031023,2]
[339969476,1728244232895,-500.0,0.00031023,2]
[339969477,1728244232906,-274.96,0.00031023,2]
[339969478,1728244232915,-500.0,0.00031023,2]
[339969479,1728244232924,-500.0,0.00031023,2]
[339969480,1728244232934,-500.0,0.00031023,2]
[339969481,1728244232943,-500.0,0.00031023,2]
[339969482,1728244232952,-500.0,0.00031023,2]